Cogmind - Beta 13 @@@ ROGUE MODE // 2024.04.09 @ 23:32:03 Player: A Moose Result: Destroyed by as-01085 with Assembled Heavy Rifle Performance ------------- Evolutions (0) 0 Regions Visited (2) 400 Robots Destroyed (14) 70 Value Destroyed (203) 203 Prototype IDs (0) 0 Alien Tech Used (0) 0 Bonus (0) 0 TOTAL SCORE: 673 Bonus ------- None Cogmind --------- Core Integrity 0/250 Matter 236/300 Energy 125/125 System Corruption 0% Temperature Cool (0) Movement Rolling (80) Location -10/Mines Parts ------- > --- POWER (1) -------- Light Ion Engine > --- PROPULSION (2) --- Wheel Wheel > --- UTILITY (2) ------ (None) > --- WEAPON (2) ------- Small Laser > --- INVENTORY (5) ---- Light Nuclear Core Light Treads Small Storage Unit Large Matter Pod (0) Peak State ------------ > --- POWER ------------ Ion Engine > --- PROPULSION ------- Light Treads Light Treads > --- UTILITY ---------- Small Storage Unit Signal Interpreter > --- WEAPON ----------- EM Pulse Gun Assault Rifle > --- INVENTORY -------- Light Ion Engine Small Laser [Rating: 7] Favorites ----------- Power Ion Engine Engine Ion Engine Propulsion Light Treads Treads Light Treads Wheel Wheel Utility Small Storage Unit Storage Small Storage Unit Processor Signal Interpreter Weapon Assault Rifle Energy Gun EM Pulse Gun Ballistic Gun Assault Rifle Build | -11 -10 -10 ------- Run | Yrd Mat Min Slots Evolved . | . . . Power . | . . . Propulsion . | . . . Utility . | . . . Weapon . | . . . Parts Attached 16 | 7 2 7 Power 5 | 2 . 3 Engine 5 | 2 . 3 Core . | . . . Reactor . | . . . Propulsion 4 | 2 . 2 Treads 2 | 2 . . Leg . | . . . Wheel 2 | . . 2 Hover . | . . . Flight . | . . . Utility 2 | 1 1 . Device . | . . . Storage 1 | 1 . . Processor 1 | . 1 . Hackware . | . . . Protection . | . . . Artifact . | . . . Weapon 5 | 2 1 2 Energy Gun 3 | 1 . 2 Energy Cannon . | . . . Ballistic Gun 2 | 1 1 . Ballistic Cannon . | . . . Launcher . | . . . Special Weapon . | . . . Impact Weapon . | . . . Slashing Weapon . | . . . Piercing Weapon . | . . . Special Melee Weapon . | . . . Unidentified Prototypes . | . . . Parts Lost 5 | . . 5 Power 1 | . . 1 Propulsion 1 | . . 1 Utility . | . . . Weapon 3 | . . 3 Highest Loss Streak 5 | . . 5 To Critical Strikes . | . . . Average Slot Usage (%) 88 | . 92 84 Engine 13 | . 14 12 Treads 25 | . 28 21 Wheel 1 | . . 2 Storage 12 | . 14 10 Processor 8 | . 6 10 Energy Gun 7 | . 11 2 Ballistic Gun 18 | . 16 21 Naked Turns 12 | . . 12 Heaviest Build 14 | 14 14 14 Greatest Support 40 | 40 40 40 Greatest Overweight (x) . | . . . Average Overweight (x) . | . . . Largest Inventory Capacity 8 | 8 8 8 Average Capacity 7 | 7 8 7 Most Carried 6 | 5 4 6 Average Carried 3 | 2 2 4 Final Capacity 8 | 8 8 5 Final Carried 4 | 2 4 4 Class Distribution -------------------- 100% | Mutant Dominant Class ---------------- Mutant | -10/Materials Mutant | -10/Mines Resources | -11 -10 -10 ----------- Run | Yrd Mat Min Matter Collected 460 | 169 173 118 Remotely . | . . . Salvage Created 395 | . 276 119 Parts 27 | . 21 6 Haulers Intercepted 1 | . 1 . Recyclers Shooed 2 | . 2 . Parts Field Recycled . | . . . Retrieved Matter . | . . . Parts Self-Destructed . | . . . Prevented . | . . . Kills | -11 -10 -10 ------- Run | Yrd Mat Min Combat Hostiles Destroyed 10 | . 6 4 Guns 8 | . 4 4 AOE 2 | . 2 . Classes Destroyed 7 | . 5 2 Worker 2 | . 2 . Hauler 1 | . 1 . Recycler 1 | . 1 . Watcher 2 | . 2 . Swarmer 6 | . 6 . Grunt 2 | . . 2 Assembled 2 | . . 2 Best Kill Streak 8 | . 8 2 Combat Bots Only 3 | . 3 2 Max Kills in Single Turn 2 | . 2 1 Gunslinging . | . . . Exploded 2 | . 2 . Melee . | . . . Uniques/NPCs Destroyed . | . . . Combat | -11 -10 -10 -------- Run | Yrd Mat Min Hostile Shots Fired 89 | . 34 55 Missed 31 | . 15 16 Damage Taken 885 | . 190 695 Core 264 | . 56 208 Absorbed by Shields . | . . . Core Remaining (%) 100 | 100 . . Volleys Fired 51 | . 29 22 Largest 2 | . 2 2 Hottest 80 | . 60 80 Shots Fired 94 | . 58 36 Gun 94 | . 58 36 Cannon . | . . . Launcher . | . . . Special . | . . . Kinetic 63 | . 37 26 Thermal 9 | . . 9 Explosive . | . . . Electromagnetic 22 | . 21 1 Robot Hit Streak 6 | . 6 6 Robot Miss Streak 4 | . 4 2 Penetration Max . | . . . Secondary Targets 1 | . . 1 Max Gunslinging Chain 1 | . . 1 Shots Hit Robots 58 | . 35 23 Core Hits 28 | . 19 9 Critical Kills . | . . . Critical Parts Destroyed . | . . . Critical Strikes . | . . . Melee Attacks . | . . . Impact . | . . . Slashing . | . . . Piercing . | . . . Sneak Attacks . | . . . Combat Hostiles . | . . . Follow-up Attacks . | . . . Damage Inflicted 899 | . 609 290 Guns 751 | . 461 290 Cannons . | . . . Explosions 148 | . 148 . Melee . | . . . Ramming . | . . . Kinetic 548 | . 321 227 Thermal 201 | . 148 53 Explosive . | . . . Electromagnetic 150 | . 140 10 Impact . | . . . Slashing . | . . . Piercing . | . . . Highest Corruption . | . . . Average Corruption . | . . . Corruption Purged . | . . . Corruption Blocked . | . . . Overload Shots . | . . . Overflow Damage . | . . . Projectiles . | . . . Explosions . | . . . Melee . | . . . Knockbacks . | . . . Impact . | . . . Kinetic . | . . . Secondary . | . . . Self-Inflicted Damage 37 | . 37 . Shots 1 | . 1 . Rammed . | . . . Targets Rammed . | . . . Kicked . | . . . Crushed . | . . . Highest Temperature 18 | . 12 18 Average Temperature 10 | . 12 10 Received Heat Transfer 90 | . . 90 Siege Activations . | . . . Robots Corrupted . | . . . Combat Hostiles . | . . . Parts Fried . | . . . Impact Corruptions . | . . . Robots Melted . | . . . Combat Hostiles . | . . . Parts Melted . | . . . Heat Transferred 375 | . 250 125 Parts Sabotaged . | . . . Parts Stolen . | . . . Parts Stripped . | . . . Power Chain Reactions 3 | . 3 . Alert | -11 -10 -10 ------- Run | Yrd Mat Min Peak Influence 243 | . 243 66 Initial 16 | . . 16 Average 94 | . 150 49 Maximum Alert Level 1 | . 1 . Low Security (%) 77 | 100 54 100 Level 1 22 | . 45 . Level 2 . | . . . Level 3 . | . . . Level 4 . | . . . Level 5 . | . . . High Security . | . . . Max Security . | . . . Squads Dispatched . | . . . Investigation . | . . . Extermination . | . . . Reinforcement . | . . . Assault . | . . . Garrison . | . . . Intercept . | . . . Searches Triggered . | . . . Construction Impeded . | . . . Haulers Reinforced . | . . . Active Scanning Responses . | . . . Cargo Convoy Interrupts . | . . . Stealth | -11 -10 -10 --------- Run | Yrd Mat Min Distress Signals . | . . . Communications Jammed . | . . . Distress Signals . | . . . Times Spotted 27 | . 10 17 Peak Tracking Total 13 | . 3 13 Tactical Retreats 1 | . . 1 Traps | -11 -10 -10 ------- Run | Yrd Mat Min Traps Triggered . | . . . Indirectly . | . . . Trap Hack Attempts . | . . . Triggered . | . . . Disarmed . | . . . Reprogrammed . | . . . Reused . | . . . Traps Extracted . | . . . Installed . | . . . Triggered . | . . . Machines | -11 -10 -10 ---------- Run | Yrd Mat Min Machines Disabled 2 | . 2 . Max in Single Turn 1 | . 1 . Machines Repaired . | . . . Machines Dismantled . | . . . Machines Sabotaged . | . . . Overloaded Fab Kills . | . . . Hacking | -11 -10 -10 --------- Run | Yrd Mat Min Machines Accessed 2 | . 2 . Terminals 1 | . 1 . Fabricators . | . . . Repair Stations . | . . . Recycling Units 1 | . 1 . Scanalyzers . | . . . Garrison Access . | . . . Total Hacks 4 | . 4 . Successful 2 | . 2 . Failed 2 | . 2 . Catastrophic 1 | . 1 . Database Lockouts . | . . . Manual . | . . . Terminals 2 | . 2 . Fabricators . | . . . Repair Stations . | . . . Recycling Units 2 | . 2 . Scanalyzers . | . . . Garrison Access . | . . . Terminal Hacks 1 | . 1 . Alert Level 1 | . 1 . Fabricator Hacks . | . . . Repair Station Hacks . | . . . Recycling Unit Hacks 1 | . 1 . Report Inventory 1 | . 1 . Scanalyzer . | . . . Garrison Access Hacks . | . . . Unauthorized Hacks . | . . . Terminals . | . . . Fabricators . | . . . Repair Stations . | . . . Recycling Units . | . . . Scanalyzers . | . . . Garrison Access . | . . . Data Cores Recovered . | . . . Used . | . . . Hacking Detections 1 | . 1 . Full Trace Events . | . . . Feedback Events . | . . . Feedback Blocked . | . . . Robot Schematics Acquired . | . . . Robots Built . | . . . Authchips . | . . . Time . | . . . Total Robot Build Rating . | . . . Part Schematics Acquired . | . . . Parts Built . | . . . Authchips . | . . . Time . | . . . Total Part Build Rating . | . . . Parts Repaired . | . . . Time . | . . . Parts Recycled . | . . . Recycled Matter . | . . . Retrieved Matter . | . . . Retrieved Components . | . . . Parts Scanalyzed . | . . . Part Schematics Acquired . | . . . Parts Damaged . | . . . Bothacking | -11 -10 -10 ------------ Run | Yrd Mat Min Used RIF Installer . | . . . Robots Hacked . | . . . Non-combat . | . . . Combat . | . . . Robot Hacks Applied . | . . . Relay Couplers Released . | . . . Fabnet Peak Effective % . | . . . Robots Rewired . | . . . Allies Hacked . | . . . Hacks Repelled . | . . . Allies | -11 -10 -10 -------- Run | Yrd Mat Min Total Allies . | . . . Largest Group . | . . . Highest-Rated Group . | . . . Highest-Rated Ally . | . . . Total Orders . | . . . Ally Attacks . | . . . Total Damage . | . . . Kills . | . . . Allies Corrupted . | . . . Allies Melted . | . . . Intel | -11 -10 -10 ------- Run | Yrd Mat Min Robot Analysis Total . | . . . Derelict Logs Recovered 1 | . . 1 Drone Launches . | . . . Drone Recoveries . | . . . Exploration | -11 -10 -10 ------------- Run | Yrd Mat Min Turns Passed 872 | 93 431 348 Spaces Moved 483 | 61 212 210 Core 56 | 21 . 35 Treads 394 | 40 212 142 Legs . | . . . Wheels 33 | . . 33 Hover . | . . . Flight . | . . . Fastest Speed 50 | 50 160 50 Average Speed 141 | 122 160 129 Slowest Speed 160 | 160 160 160 Overloaded Moves . | . . . Propulsion Burnouts . | . . . Robots Hopped . | . . . Cave-ins Triggered . | . . . Exploration Rate (%) 30 | 4 39 49 Regions Visited 2 Branch Regions 1 Pre-discovered Areas . | . . . Known Exits Taken 1 | . 1 . Unknown Exits Taken 1 | 1 . . Scrap Searched . | . . . Spaces Dug . | . . . Terrain Destroyed 6 | . 6 . Melee . | . . . Projectile . | . . . AOE 6 | . 6 . Terrain Rammed . | . . . Walls Destroyed . | . . . Machines Disabled . | . . . Actions | -11 -10 -10 --------- Run | Yrd Mat Min Total 575 | 79 245 251 Wait 9 | 4 . 5 Move 481 | 60 211 210 Hop . | . . . Pick Up 18 | 8 3 7 Fast Attach . | . . . Attach 13 | 6 1 6 Detach . | . . . Swap 3 | 1 1 1 Drop . | . . . Fire 51 | . 29 22 Melee . | . . . Ram . | . . . Kick . | . . . Crush . | . . . Escape Stasis . | . . . Rewire . | . . . Trap . | . . . Miscellaneous . | . . . Route ------- -11/Scrapyard -10/Materials -10/Mines History --------- Turn | Location | Event 12 | -11/Scrapyard | Discovered new exit (range 15) 94 | -11/Scrapyard | Entered Materials 304 | -10/Materials | Build established: Mutant 367 | -10/Materials | Discovered new exit (range 13) 493 | -10/Materials | Identified exit to Mines 525 | -10/Materials | Entered Mines 548 | -10/Mines | Learned 4 Materials zone layouts 771 | -10/Mines | Assembled infested the area 796 | -10/Mines | Released all parts (4) 817 | -10/Mines | Core integrity fell below 50% 824 | -10/Mines | Core integrity fell below 20% 857 | -10/Mines | Lost 5 parts (1p1n3w) 873 | -10/Mines | Destroyed by as-01085 with Assembled Heavy Rifle Last Messages --------------- Released Signal Interpreter. Released Ion Engine. EM Pulse Gun destroyed. Destroyed Asb. Hover Unit. Ion Engine destroyed. as-13005 destroyed. Acquired 7 matter. Acquired Wheel. K-01 Serf collects debris. Acquired 12 matter. Acquired Wheel. K-01 Serf collects debris. The unstable cave ceiling collapses. Acquired Lrg. Matter Pod. K-01 Serf collects debris. Acquired Lgt. Treads. Acquired Sml. Storage Unit. K-01 Serf collects debris. The unstable cave ceiling collapses. K-01 Serf collects debris. Map ----- +----------------------------------------------------+ | #????????# ##??????# """ ##??????????????? | | #???????## ##???##### """ ####???????????? | | #???##### ###???## ##??????????? | | #??## ##?????# ##?????????? | | #### #?????## #?????????? | | ####### #?????????? | | ##????????? | | ## ### ##???????? | | ### #### ##?## #???????? | | ### #?# #??## ####???## #### #???????? | | ##?## ## #???## ##???????#*##??###???????? | | ##???# ## #????# #????????# #?????????????? | | #????## ### #????## ##????????# #?????????????? | | ##????###?# #????# ##????????# #?????????????? | | #???????? #????# #????????# #?????????????? | | #????????###???## ###??????# ?????????????? | | #?????????????## # #??????# ?????????????? | | ##?????????????# ##?????###?????????????? | | ###??????????????## #k #?????????????????????? | | ?????????????????# # #####?????????????????? | | ?????????????????# # # ##????????????????? | | ?????????????????## #????????????????? | | ?????????????????# # # #???????????????? | | ????????????????## ##???#???????????????? | | ????????????????# %# # #??????????????? | | ???????????????# @ % = a! ????????? | | ??????????????# # =%! %#?????????? | | ??????????????# ## # * #??????????? | | ??????????????## ## #??????????? | | ???????????????###?## ### #??????????? | | ????????????????????# # #??? a ##??????????? | | ???????????????????? ###???? ##???????????? | | ??????????????????? ##????????#????????????? | | ?????????????????? ##??????????????????????? | | ????????????????? ##???????????????????????? | | ???????????????? ##????????????????????????? | | ??????????????? ??????????????????????????? | | ????????????????# ??????????????????????????? | | ?????????????????? ??????????????????????????? | | ????????????????????? ??????????????????????????? | | ?????????????????????????????????????????????????? | | ?????????????????????????????????????????????????? | | ?????????????????????????????????????????????????? | | ?????????????????????????????????????????????????? | | ?????????????????????????????????????????????????? | | ?????????????????????????????????????????????????? | | ?????????????????????????????????????????????????? | | ?????????????????????????????????????????????????? | | ?????????????????????????????????????????????????? | | ?????????????????????????????????????????????????? | +----------------------------------------------------+ Best States ------------- Heat Dissipation 25 Energy Generation 10 Energy Capacity 250 Matter Stores 299 Matter Capacity 300 Sight Range 16 Terrain Scan Density 10 Evasion (%) 50 Recoil Reduction 2 Item Schematics ----------------- None Robot Schematics ------------------ None Fabricated ------------ Nothing Alien Tech Used ----------------- None Achievements -------------- None Challenges ------------ None Game ------ Seed FusionHackingNullifier Manual? 0 Play Time 00:09:58 Cumulative 23.6 hours Start 2024.04.09 @ 23:17:03 End 2024.04.09 @ 23:32:03 Sessions 1 Manual Loads 0 Difficulty Rogue Special Mode None Game No. 29 Rogue 20 Adventurer 9 Explorer 0 Win Type - Total 0 Types 0/0/0/0/0/0/0/0/0 Lore% 21 Gallery% 33 Achievement% 28 Wizard Run 0 Options --------- Layout 1 ASCII 0 Keyboard 0 Movement Numpad Keybinds 0 Fullscreen 1 Font 24/Smallcaps Map View 50x35 Zoom Use 0% Tactical HUD 0 Map Filters NONE Filters NONE Steam 1 RUN: 1ae01acd-8221-41f5-a092-d00ca7d5eec4